Cogmind - Beta 13 @@@ ROGUE MODE // 2024.03.06 @ 10:28:17 Player: Zon Result: Destroyed by D-53 Grenadier with Mini Grenade Launcher Performance ------------- Evolutions (0) 0 Regions Visited (2) 400 Robots Destroyed (9) 45 Value Destroyed (193) 193 Prototype IDs (0) 0 Alien Tech Used (0) 0 Bonus (0) 0 TOTAL SCORE: 638 Bonus ------- None Cogmind --------- Core Integrity 0/250 Matter 232/300 Energy 100/100 System Corruption 2% Temperature Cool (0) Movement Core (50) Location -10/Mines Parts ------- > --- POWER (1) -------- (None) > --- PROPULSION (2) --- (None) > --- UTILITY (2) ------ (None) > --- WEAPON (2) ------- (None) > --- INVENTORY (5) ---- Light Ion Engine Aluminum Leg Aluminum Leg Compact Wheel Seismic Detector Peak State ------------ > --- POWER ------------ Light Ion Engine > --- PROPULSION ------- Aluminum Leg Aluminum Leg > --- UTILITY ---------- Small Storage Unit Tractor Beam > --- WEAPON ----------- Assault Rifle Light Assault Rifle > --- INVENTORY -------- Light Ion Engine Light Treads Light Treads Compact Wheel Compact Wheel Compact Wheel Light Assault Rifle [Rating: 7] Favorites ----------- Power Light Ion Engine Engine Light Ion Engine Propulsion Aluminum Leg Treads Light Treads Leg Aluminum Leg Utility Small Storage Unit Device Seismic Detector Storage Small Storage Unit Processor Targeting Computer Weapon Light Assault Rifle Ballistic Gun Light Assault Rifle Launcher Grenade Launcher Build | -11 -10 -10 ------- Run | Yrd Mat Min Slots Evolved . | . . . Power . | . . . Propulsion . | . . . Utility . | . . . Weapon . | . . . Parts Attached 15 | 6 5 4 Power 3 | 1 1 1 Engine 3 | 1 1 1 Core . | . . . Reactor . | . . . Propulsion 4 | 2 . 2 Treads 2 | . . 2 Leg 2 | 2 . . Wheel . | . . . Hover . | . . . Flight . | . . . Utility 4 | 1 3 . Device 2 | . 2 . Storage 1 | 1 . . Processor 1 | . 1 . Hackware . | . . . Protection . | . . . Artifact . | . . . Weapon 4 | 2 1 1 Energy Gun . | . . . Energy Cannon . | . . . Ballistic Gun 3 | 2 1 . Ballistic Cannon . | . . . Launcher 1 | . . 1 Special Weapon . | . . . Impact Weapon . | . . . Slashing Weapon . | . . . Piercing Weapon . | . . . Special Melee Weapon . | . . . Unidentified Prototypes . | . . . Parts Lost 4 | . . 4 Power 1 | . . 1 Propulsion 2 | . . 2 Utility . | . . . Weapon 1 | . . 1 Highest Loss Streak 3 | . . 3 To Critical Strikes . | . . . Average Slot Usage (%) 99 | . 99 99 Engine 14 | . 14 14 Leg 27 | . 28 26 Device 3 | . 5 . Storage 14 | . 14 14 Processor 10 | . 8 14 Ballistic Gun 22 | . 28 14 Launcher 4 | . . 13 Naked Turns 1 | . . 1 Heaviest Build 12 | 11 12 12 Greatest Support 40 | 20 20 40 Greatest Overweight (x) 2 | . . 2 Average Overweight (x) . | . . . Largest Inventory Capacity 8 | 8 8 8 Average Capacity 7 | 6 8 7 Most Carried 8 | 8 8 8 Average Carried 7 | 3 7 6 Final Capacity 8 | 8 8 5 Final Carried 8 | 8 8 5 Class Distribution -------------------- 100% | Mutant Dominant Class ---------------- Mutant | -10/Materials Mutant | -10/Mines Resources | -11 -10 -10 ----------- Run | Yrd Mat Min Matter Collected 426 | 268 114 44 Remotely . | . . . Salvage Created 243 | 66 114 63 Parts 18 | 3 5 10 Haulers Intercepted . | . . . Recyclers Shooed 1 | . . 1 Parts Field Recycled . | . . . Retrieved Matter . | . . . Parts Self-Destructed . | . . . Prevented . | . . . Kills | -11 -10 -10 ------- Run | Yrd Mat Min Combat Hostiles Destroyed 10 | . 2 8 Guns 2 | . 2 . AOE 8 | . . 8 Classes Destroyed 6 | 1 2 3 Builder 2 | . . 2 Recycler 1 | 1 . . Watcher 1 | . 1 . Swarmer 3 | . . 3 Grunt 2 | . 2 . Assembled 5 | . . 5 Best Kill Streak 5 | 1 2 5 Combat Bots Only 5 | . 1 5 Max Kills in Single Turn 3 | 1 1 3 Gunslinging . | . . . Exploded 3 | . . 3 Melee . | . . . Uniques/NPCs Destroyed . | . . . Combat | -11 -10 -10 -------- Run | Yrd Mat Min Hostile Shots Fired 85 | . 20 65 Missed 28 | . 6 22 Damage Taken 867 | . 211 656 Core 252 | . 33 219 Absorbed by Shields . | . . . Regen/Repaired (Parts) 25 | . 25 . Core Remaining (%) 100 | 100 . . Volleys Fired 33 | 2 22 9 Largest 2 | 2 2 2 Hottest 50 | 40 40 50 Shots Fired 66 | 4 44 18 Gun 58 | 4 44 10 Cannon . | . . . Launcher 8 | . . 8 Special . | . . . Kinetic 58 | 4 44 10 Thermal . | . . . Explosive 8 | . . 8 Electromagnetic . | . . . Robot Hit Streak 11 | 2 11 1 Robot Miss Streak 4 | 1 4 1 Penetration Max . | . . . Secondary Targets . | . . . Shots Hit Robots 30 | 3 24 3 Core Hits 36 | 2 8 26 Critical Kills . | . . . Critical Parts Destroyed 1 | . 1 . Critical Strikes 1 | . 1 . Destroy 1 | . 1 . Melee Attacks . | . . . Impact . | . . . Slashing . | . . . Piercing . | . . . Sneak Attacks . | . . . Combat Hostiles . | . . . Follow-up Attacks . | . . . Damage Inflicted 780 | 25 223 532 Guns 271 | 25 223 23 Cannons . | . . . Explosions 509 | . . 509 Melee . | . . . Ramming . | . . . Kinetic 271 | 25 223 23 Thermal . | . . . Explosive 509 | . . 509 Electromagnetic . | . . . Impact . | . . . Slashing . | . . . Piercing . | . . . Highest Corruption 2 | . . 2 Average Corruption 2 | . . 2 Corruption Purged . | . . . Corruption Blocked . | . . . Overload Shots . | . . . Overflow Damage 3 | . . 3 Projectiles . | . . . Explosions 3 | . . 3 Melee . | . . . Knockbacks . | . . . Impact . | . . . Kinetic . | . . . Secondary . | . . . Self-Inflicted Damage 72 | . . 72 Shots 3 | . . 3 Rammed . | . . . Targets Rammed . | . . . Kicked . | . . . Crushed . | . . . Highest Temperature 30 | . 15 30 Average Temperature 10 | . 7 12 Received Heat Transfer 196 | . 96 100 Siege Activations . | . . . Robots Corrupted . | . . . Combat Hostiles . | . . . Parts Fried . | . . . Impact Corruptions . | . . . Robots Melted . | . . . Combat Hostiles . | . . . Parts Melted . | . . . Heat Transferred . | . . . Parts Sabotaged . | . . . Parts Stolen . | . . . Parts Stripped . | . . . Power Chain Reactions . | . . . Alert | -11 -10 -10 ------- Run | Yrd Mat Min Peak Influence 211 | 5 89 211 Initial 23 | . 3 23 Average 81 | . 36 182 Maximum Alert Level 1 | . . 1 Low Security (%) 99 | 100 100 98 Level 1 . | . . 1 Level 2 . | . . . Level 3 . | . . . Level 4 . | . . . Level 5 . | . . . High Security . | . . . Max Security . | . . . Squads Dispatched . | . . . Investigation . | . . . Extermination . | . . . Reinforcement . | . . . Assault . | . . . Garrison . | . . . Intercept . | . . . Searches Triggered . | . . . Construction Impeded . | . . . Haulers Reinforced . | . . . Active Scanning Responses . | . . . Cargo Convoy Interrupts . | . . . Stealth | -11 -10 -10 --------- Run | Yrd Mat Min Distress Signals . | . . . Communications Jammed . | . . . Distress Signals . | . . . Times Spotted 30 | . 11 19 Peak Tracking Total 13 | . 3 13 Tactical Retreats 3 | . 3 . Traps | -11 -10 -10 ------- Run | Yrd Mat Min Traps Triggered 2 | . 2 . Indirectly . | . . . Trap Hack Attempts . | . . . Triggered . | . . . Disarmed . | . . . Reprogrammed . | . . . Reused . | . . . Traps Extracted . | . . . Installed . | . . . Triggered . | . . . Machines | -11 -10 -10 ---------- Run | Yrd Mat Min Machines Disabled 5 | . . 5 Max in Single Turn 3 | . . 3 Machines Repaired . | . . . Machines Dismantled . | . . . Machines Sabotaged . | . . . Overloaded Fab Kills . | . . . Hacking | -11 -10 -10 --------- Run | Yrd Mat Min Machines Accessed 5 | . 5 . Terminals 3 | . 3 . Fabricators . | . . . Repair Stations 1 | . 1 . Recycling Units 1 | . 1 . Scanalyzers . | . . . Garrison Access . | . . . Total Hacks 9 | . 9 . Successful 6 | . 6 . Failed 3 | . 3 . Catastrophic . | . . . Database Lockouts . | . . . Manual . | . . . Terminals 5 | . 5 . Fabricators . | . . . Repair Stations 2 | . 2 . Recycling Units 2 | . 2 . Scanalyzers . | . . . Garrison Access . | . . . Terminal Hacks 3 | . 3 . Record 1 | . 1 . Emergency Access Points 1 | . 1 . Zone Layout 1 | . 1 . Fabricator Hacks . | . . . Repair Station Hacks 2 | . 2 . Scan Component 1 | . 1 . Repair 1 | . 1 . Recycling Unit Hacks 1 | . 1 . Retrieve Matter 1 | . 1 . Scanalyzer . | . . . Garrison Access Hacks . | . . . Unauthorized Hacks . | . . . Terminals . | . . . Fabricators . | . . . Repair Stations . | . . . Recycling Units . | . . . Scanalyzers . | . . . Garrison Access . | . . . Data Cores Recovered . | . . . Used . | . . . Hacking Detections 3 | . 3 . Full Trace Events . | . . . Feedback Events . | . . . Feedback Blocked . | . . . Robot Schematics Acquired . | . . . Robots Built . | . . . Authchips . | . . . Time . | . . . Total Robot Build Rating . | . . . Part Schematics Acquired . | . . . Parts Built . | . . . Authchips . | . . . Time . | . . . Total Part Build Rating . | . . . Parts Repaired 1 | . 1 . Time 26 | . 26 . Parts Recycled . | . . . Recycled Matter . | . . . Retrieved Matter . | . . . Retrieved Components . | . . . Parts Scanalyzed . | . . . Part Schematics Acquired . | . . . Parts Damaged . | . . . Bothacking | -11 -10 -10 ------------ Run | Yrd Mat Min Used RIF Installer . | . . . Robots Hacked . | . . . Non-combat . | . . . Combat . | . . . Robot Hacks Applied . | . . . Relay Couplers Released . | . . . Fabnet Peak Effective % . | . . . Robots Rewired . | . . . Allies Hacked . | . . . Hacks Repelled . | . . . Allies | -11 -10 -10 -------- Run | Yrd Mat Min Total Allies . | . . . Largest Group . | . . . Highest-Rated Group . | . . . Highest-Rated Ally . | . . . Total Orders . | . . . Ally Attacks . | . . . Total Damage . | . . . Kills . | . . . Allies Corrupted . | . . . Allies Melted . | . . . Intel | -11 -10 -10 ------- Run | Yrd Mat Min Robot Analysis Total . | . . . Derelict Logs Recovered 1 | . . 1 Drone Launches . | . . . Drone Recoveries . | . . . Exploration | -11 -10 -10 ------------- Run | Yrd Mat Min Turns Passed 1015 | 94 581 340 Spaces Moved 689 | 62 395 232 Core 11 | 6 . 5 Treads 3 | . . 3 Legs 675 | 56 395 224 Wheels . | . . . Hover . | . . . Flight . | . . . Fastest Speed 50 | 50 120 50 Average Speed 119 | 113 120 120 Slowest Speed 190 | 120 120 190 Overloaded Moves . | . . . Propulsion Burnouts . | . . . Robots Hopped . | . . . Cave-ins Triggered . | . . . Exploration Rate (%) 32 | 4 45 48 Regions Visited 2 Branch Regions 1 Pre-discovered Areas . | . . . Known Exits Taken . | . . . Unknown Exits Taken 2 | 1 1 . Scrap Searched 1 | . . 1 Spaces Dug . | . . . Terrain Destroyed 48 | . . 48 Melee . | . . . Projectile . | . . . AOE 48 | . . 48 Terrain Rammed . | . . . Walls Destroyed . | . . . Machines Disabled . | . . . Actions | -11 -10 -10 --------- Run | Yrd Mat Min Total 820 | 80 464 276 Wait 63 | . 34 29 Move 687 | 61 394 232 Hop . | . . . Pick Up 17 | 11 5 1 Fast Attach 4 | 3 1 . Attach 8 | 3 1 4 Detach . | . . . Swap 3 | . 3 . Drop 5 | . 4 1 Fire 33 | 2 22 9 Melee . | . . . Ram . | . . . Kick . | . . . Crush . | . . . Escape Stasis . | . . . Rewire . | . . . Trap . | . . . Miscellaneous . | . . . Route ------- -11/Scrapyard -10/Materials (discovered 2 exits: [*Mat] / [*Min]) -10/Mines (discovered 1 exit: [*Mat]) History --------- Turn | Location | Event 4 | -11/Scrapyard | Discovered new exit (range 15) 95 | -11/Scrapyard | Entered Materials 213 | -10/Materials | Discovered new exit (range 7) 300 | -10/Materials | Build established: Mutant 543 | -10/Materials | Repaired Lgt. Ion Engine 628 | -10/Materials | Discovered new exit (range 8) 676 | -10/Materials | Entered Mines 819 | -10/Mines | Discovered new exit (range 11) 906 | -10/Mines | Learned location of 1 exit from Materials 983 | -10/Mines | Assembled infested the area 988 | -10/Mines | Assisted by a Guerilla fighting off Assembled 1005 | -10/Mines | Core integrity fell below 50% 1015 | -10/Mines | Released all parts (6) 1016 | -10/Mines | Destroyed by D-53 Grenadier with Mini Grenade Launcher Last Messages --------------- 00995_ as-80383 destroyed. 00998_ Aluminum Leg destroyed. 00998_ System corrupted by crushing effect (+2). 01001_ Grenade Launcher destroyed. 01001_ Destroyed Grenade Launcher. 01001_ as-97191 destroyed. 01001_ as-55276 destroyed. 01003_ Aluminum Leg destroyed. 01012_ C-30 ARC bursts open, deploying its payload. 01012_ D-53 Grenadier unfolds itself. 01014_ as-90655 destroyed. 01014_ T-07 Excavator destroyed. 01014_ as-03297 destroyed. 01014_ as-95294 destroyed. 01014_ as-58761 destroyed. 01015_ Released Lgt. Ion Engine. 01015_ Released Sml. Storage Unit. 01015_ Released Lgt. Assault Rifle. 01015_ Released Targeting Computer. 01015_ Released Lgt. Treads. Map ----- +----------------------------------------------------+ | ?????????????????????????????????????????????????? | | ?????????????????????????????????????????????????? | | ?????????????????????????????????????????????????? | | ?????????????????????????????????????????????????? | | ?????????????????????????????????????????????????? | | ?????????????????????????????????????????????????? | | ?????????????????????????????????????????????????? | | ???????????????????????? ????????????????????????? | | ??????????????????????? #????????????????????????? | | ??????????????????????? ?????????????????????????? | | ????????????????###??? ?????????????????????????? | | ???????????????## ##? ??????????????????????????? | | ??????????###?## ## ??????????????????????????? | | ?????????? ## %* ???????????????????????????? | | ??????????? ???????????????????????????? | | ??????????? % % ????????????????????????????? | | ????????? % % ????????????????????????????? | | ???????? !%"" = #????????????????????????????? | | ????????# "" #########????????????????????? | | ??????????# """*% ## ##???????????????????? | | ?????????????# a= #???????????????????? | | ?????????????## a% aa #???????????????????? | | ??????????????#### [ ##??????????????????? | | ?????????????????##### =*= #??#####???##??????? | | ????????????????????## =! ##?## #??## ####??? | | ???????????????????## @ ### ##??# ##?? | | ???????????????????# ## ##???# ##? | | #??????????????????# d # ##??## #? | | #??????????????????## d ##### #???# #? | | #???????????????????##% #???#### #???# #? | | ###??????????##??????# r ##??????# ##??## #? | | #?????????## #????## ##???????# ##???# ##? | | # #?????????# ##### #????????# ###### #?? | | # #?????????# ##????#### #?? | | # #?????????# ##??## ## ##?? | | # #?????????## ##?# ########## ###??? | | # #??????????## #?# #????????# #????? | | # #???????????##### #?# ##???????# #????? | | # #???????????###### ### ##?###### #????? | | # #????????#### ### ###!= #????? | | # ########## """ / ######????? | | # """ ! #?????????? | | ##### """ #### #?????????? | | ????# ###### ###### ##?# #?????????? | | ????# #????# ## ##????## ### #???????? | | ????# #????# ### ##??????# #??????? | | ???? ????# #?# ##??????# #?????? | | ???? ????# ###??????# #?????? | | ??? ????##### #???????# #?????? | | ??? ????????# #???????# #????? | +----------------------------------------------------+ Best States ------------- Heat Dissipation 25 Energy Generation 10 Energy Capacity 125 Matter Stores 300 Matter Capacity 300 Sight Range 16 Terrain Scan Density 10 Evasion (%) 55 Targeting Accuracy 5 Recoil Reduction 2 Item Schematics ----------------- None Robot Schematics ------------------ None Fabricated ------------ Nothing Alien Tech Used ----------------- None Achievements -------------- None Challenges ------------ None Game ------ Seed FusionBehemothRecalibrator Manual? 0 Play Time 00:14:59 Cumulative 10.8 hours Start 2024.03.06 @ 10:13:57 End 2024.03.06 @ 10:28:17 Sessions 1 Manual Loads 0 Difficulty Rogue Special Mode None Game No. 5 Rogue 5 Adventurer 0 Explorer 0 Win Type - Total 0 Types 0/0/0/0/0/0/0/0/0 Lore% 14 Gallery% 13 Achievement% 14 Wizard Run 0 Options --------- Layout 0 ASCII 0 Keyboard 0 Movement Numpad Keybinds 0 Fullscreen 1 Font 24/Smallcaps Map View 76x50 Zoom Use 0% Tactical HUD 1 Map Filters NONE Filters NONE Steam 1 RUN: 9ef062e4-5f29-47df-aa0b-60500011d294